Cogmind - Beta 17.1 @@@ ROGUE MODE // 2026.09.21 @ 21:35:40 Player: teag2 Result: Self-destructed Performance ------------- Evolutions (0) 0 Regions Visited (4) 800 Robots Destroyed (4) 20 Value Destroyed (171) 171 Prototype IDs (23) 460 Alien Tech Used (0) 0 Bonus (314) 314 TOTAL SCORE: 1765 Bonus ------- Follower Combat Kills 14 Aligned with FarCom 300 Cogmind --------- Core Integrity 232/250 Matter 289/300 Energy 132/250 System Corruption 5% Temperature Cool (0) Movement Walking (190) Ox1 Location -9/Mines Parts ------- > --- POWER (1) -------- Ion Engine > --- PROPULSION (2) --- Aluminum Leg Aluminum Leg > --- UTILITY (2) ------ Medium Storage Unit Light Armor Plating > --- WEAPON (2) ------- Latent Energy Streamer > --- INVENTORY (10) --- Ion Engine Flight Unit Flight Unit Flight Unit Flight Unit Small Storage Unit High-capacity Matter Pod (200) EM Pulse Gun Assault Rifle Rocket Launcher Peak State ------------ > --- POWER ------------ Ion Engine > --- PROPULSION ------- Aluminum Leg Aluminum Leg > --- UTILITY ---------- Medium Storage Unit Light Armor Plating > --- WEAPON ----------- Latent Energy Streamer Assault Rifle > --- INVENTORY -------- Ion Engine Flight Unit Flight Unit Flight Unit Flight Unit Small Storage Unit High-capacity Matter Pod EM Pulse Gun Assault Rifle Rocket Launcher [Rating: 17] Favorites ----------- Power Ion Engine Engine Ion Engine Propulsion Aluminum Leg Leg Aluminum Leg Utility Medium Storage Unit Storage Medium Storage Unit Protection Light Armor Plating Weapon Assault Rifle Energy Cannon Latent Energy Streamer Ballistic Gun Assault Rifle Build | -11 -10 -10 -10 -9 ------- Run | Yrd Mat Min Exi Min Slots Evolved . | . . . . . Power . | . . . . . Propulsion . | . . . . . Utility . | . . . . . Weapon . | . . . . . Parts Attached 4 | . . . 3 1 Power . | . . . . . Engine . | . . . . . Core . | . . . . . Reactor . | . . . . . Propulsion . | . . . . . Treads . | . . . . . Leg . | . . . . . Wheel . | . . . . . Hover . | . . . . . Flight . | . . . . . Utility 2 | . . . 1 1 Device . | . . . . . Storage 1 | . . . 1 . Processor . | . . . . . Hackware . | . . . . . Protection 1 | . . . . 1 Artifact . | . . . . . Weapon 2 | . . . 2 . Energy Gun . | . . . . . Energy Cannon 1 | . . . 1 . Ballistic Gun 1 | . . . 1 . Ballistic Cannon . | . . . . . Launcher . | . . . . . Special Weapon . | . . . . . Impact Weapon . | . . . . . Slashing Weapon . | . . . . . Piercing Weapon . | . . . . . Special Melee Weapon . | . . . . . Unidentified Prototypes . | . . . . . Parts Lost 1 | . . . . 1 Power . | . . . . . Propulsion . | . . . . . Utility . | . . . . . Weapon 1 | . . . . 1 Highest Loss Streak 1 | . . . . 1 To Critical Strikes . | . . . . . Average Backups 8 | . 6 6 7 9 Power 1 | . 1 1 1 1 Propulsion 3 | . 4 4 4 3 Utility . | . . . . 2 Weapon 2 | . 1 1 2 3 Tool/Special . | . . . . . Unused Backups 17 | . . . . 17 Power 2 | . . . . 2 Propulsion 10 | . . . . 10 Utility 2 | . . . . 2 Weapon 3 | . . . . 3 Tool/Special . | . . . . . Average Slot Usage (%) 89 | . 85 85 85 95 Engine 14 | . 14 14 14 14 Leg 28 | . 28 28 28 28 Storage 14 | . 14 14 14 14 Protection 4 | . . . . 9 Energy Cannon 2 | . . . 5 2 Ballistic Gun 25 | . 28 28 22 25 Peak Build Rating 17 | . 6 7 15 17 Average Rating 8 | . 6 6 9 10 On Entrance 6 | 6 6 6 6 8 Avg Prop Armor Cover (%) . | . . . . . Naked Turns . | . . . . . Heaviest Build 30 | 14 14 14 22 30 Greatest Support 20 | 20 20 20 20 20 Greatest Overweight (x) 1 | . . . 1 1 Average Overweight (x) . | . . . . . Largest Inventory Capacity 10 | . 8 8 10 10 Average Capacity 9 | . 8 8 8 10 Most Carried 10 | . 6 8 10 10 Average Carried 8 | . 6 6 7 9 Final Capacity 10 | 8 8 8 10 10 Final Carried 10 | 6 6 7 10 10 Class Distribution -------------------- 100% | Mutant Dominant Class ---------------- Mutant | -10/Materials Mutant | -10/Mines Mutant | -10/Exiles Mutant | -9/Mines Resources | -11 -10 -10 -10 -9 ----------- Run | Yrd Mat Min Exi Min Matter Collected 332 | 200 . 66 30 36 Remotely . | . . . . . Salvage Created 218 | . . 104 . 114 Parts 15 | . . 4 . 11 Haulers Intercepted . | . . . . . Recyclers Shooed . | . . . . . Parts Field Recycled . | . . . . . Retrieved Matter . | . . . . . Parts Self-Destructed . | . . . . . Prevented . | . . . . . Parts Restored . | . . . . . Kills | -11 -10 -10 -10 -9 ------- Run | Yrd Mat Min Exi Min Combat Hostiles Destroyed 4 | . . 2 . 2 Guns 2 | . . 2 . . AOE 2 | . . . . 2 Classes Destroyed 2 | . . 1 . 1 Grunt 2 | . . 2 . . Sentry 2 | . . . . 2 Best Kill Streak 2 | . . 2 . 2 Combat Bots Only 2 | . . 2 . 2 Max Kills in Single Turn 2 | . . 1 . 2 Gunslinging . | . . . . . Exploded 2 | . . . . 2 Melee . | . . . . . Uniques/NPCs Destroyed . | . . . . . Combat | -11 -10 -10 -10 -9 -------- Run | Yrd Mat Min Exi Min Hostile Shots Fired 15 | . . 13 . 2 Missed 5 | . . 5 . . Hits 10 | . . 8 . 2 Projectile 10 | . . 8 . 2 AOE 4 | . . . . 4 Damage Taken 298 | . . 128 . 170 Core 18 | . . 18 . . Absorbed by Shields . | . . . . . Core Remaining (%) 100 | 100 . . . . Volleys Fired 14 | . . 11 . 3 Largest 2 | . . 2 . 2 Hottest 60 | . . 40 . 60 Shots Fired 26 | . . 22 . 4 Gun 24 | . . 22 . 2 Cannon 2 | . . . . 2 Launcher . | . . . . . Special . | . . . . . Kinetic 24 | . . 22 . 2 Thermal . | . . . . . Explosive . | . . . . . Electromagnetic 2 | . . . . 2 Robot Hit Streak 4 | . . 4 . . Robot Miss Streak 3 | . . 3 . 1 Penetration Max . | . . . . . Secondary Targets 1 | . . 1 . . Max Gunslinging Chain 1 | . . 1 . . Shots Hit Robots 13 | . . 13 . . Core Hits 6 | . . 4 . 2 Critical Kills . | . . . . . Critical Parts Destroyed . | . . . . . Critical Strikes . | . . . . . Melee Attacks . | . . . . . Impact . | . . . . . Slashing . | . . . . . Piercing . | . . . . . Sneak Attacks . | . . . . . Combat Hostiles . | . . . . . Follow-up Attacks . | . . . . . Damage Inflicted 397 | . . 168 . 229 Guns 163 | . . 163 . . Cannons . | . . . . . Explosions 226 | . . . . 226 Melee . | . . . . . Ramming 8 | . . 5 . 3 Kinetic 163 | . . 163 . . Thermal . | . . . . . Explosive . | . . . . . Electromagnetic 226 | . . . . 226 Impact . | . . . . . Slashing . | . . . . . Piercing . | . . . . . Highest Corruption 5 | . . . . 5 Average Corruption 3 | . . . . 3 Corruption Purged . | . . . . . Corruption Blocked . | . . . . . Effects 10 | . . . . 10 Message Errors 4 | . . . . 4 Matter Fused 1 | . . . . 1 Energy Discharges 3 | . . . . 3 Data Loss (minor) 1 | . . . . 1 Data Loss (major) 1 | . . . . 1 Overload Shots . | . . . . . Overflow Damage . | . . . . . Projectiles . | . . . . . Explosions . | . . . . . Melee . | . . . . . Knockbacks . | . . . . . Impact . | . . . . . Kinetic . | . . . . . Secondary . | . . . . . Self-Inflicted Damage . | . . . . . Shots . | . . . . . Rammed . | . . . . . Targets Rammed 4 | . . 2 . 2 Kicked 4 | . . 2 . 2 Crushed . | . . . . . Highest Temperature 26 | . . 2 . 26 Average Temperature 7 | . . 2 . 13 Received Heat Transfer 72 | . . 72 . . Siege Activations . | . . . . . Martial Activations . | . . . . . Shielding Activations . | . . . . . Robots Disrupted . | . . . . . Combat Hostiles . | . . . . . Robots Corrupted . | . . . . . Combat Hostiles . | . . . . . Parts Fried . | . . . . . Impact Corruptions . | . . . . . Robots Melted . | . . . . . Combat Hostiles . | . . . . . Parts Melted . | . . . . . Heat Transferred . | . . . . . Parts Sabotaged . | . . . . . Parts Stolen . | . . . . . Parts Stripped . | . . . . . Power Chain Reactions . | . . . . . Latent Energy Used 236 | . . . . 236 LE Corruption 5 | . . . . 5 Alert | -11 -10 -10 -10 -9 ------- Run | Yrd Mat Min Exi Min Maximum Alert Level . | . . . . . Low Security (%) 100 | . 100 100 . 100 Level 1 . | . . . . . Level 2 . | . . . . . Level 3 . | . . . . . Level 4 . | . . . . . Level 5 . | . . . . . High Security . | . . . . . Max Security . | . . . . . Peak Influence 142 | . . 40 . 142 Initial . | . . . . . Average 13 | . . 2 . 21 Influence Increases 192 | . . 50 . 142 Destroy 0b10 Robot/C 120 | . . 40 . 80 Destroy Leader 20 | . . 10 . 10 Allied During Kill 14 | . . . . 14 Destroy Structure 23 | . . . . 23 Lose Combat Pursuer 15 | . . . . 15 Influence Decreases 192 | . . 50 . 142 Time Decay 192 | . . 50 . 142 Squads Dispatched . | . . . . . Investigation . | . . . . . Extermination . | . . . . . Reinforcement . | . . . . . Assault . | . . . . . Garrison . | . . . . . Intercept . | . . . . . Searches Triggered . | . . . . . Construction Impeded . | . . . . . Haulers Reinforced . | . . . . . Active Scanning Responses . | . . . . . Cargo Convoy Interrupts . | . . . . . Stealth | -11 -10 -10 -10 -9 --------- Run | Yrd Mat Min Exi Min Distress Signals . | . . . . . Communications Jammed . | . . . . . Distress Signals . | . . . . . Times Spotted 11 | . . 2 . 9 Peak Tracking Total 6 | . . 2 . 6 Tactical Retreats 1 | . . . . 1 Traps | -11 -10 -10 -10 -9 ------- Run | Yrd Mat Min Exi Min Traps Triggered . | . . . . . Indirectly . | . . . . . Trap Hack Attempts . | . . . . . Triggered . | . . . . . Disarmed . | . . . . . Reprogrammed . | . . . . . Reused . | . . . . . Traps Extracted . | . . . . . Installed . | . . . . . Triggered . | . . . . . Machines | -11 -10 -10 -10 -9 ---------- Run | Yrd Mat Min Exi Min Machines Disabled 2 | . . . . 2 Max in Single Turn 2 | . . . . 2 Machines Repaired . | . . . . . Machines Dismantled . | . . . . . Machines Sabotaged . | . . . . . Overloaded Fab Kills . | . . . . . Hacking | -11 -10 -10 -10 -9 --------- Run | Yrd Mat Min Exi Min Machines Accessed 1 | . . . 1 . Terminals . | . . . . . Fabricators . | . . . . . Repair Stations . | . . . . . Recycling Units . | . . . . . Scanalyzers . | . . . . . Garrison Access . | . . . . . Total Hacks 1 | . . . 1 . Successful 1 | . . . 1 . Failed . | . . . . . Catastrophic . | . . . . . Database Lockouts . | . . . . . Manual 1 | . . . 1 . Terminals . | . . . . . Fabricators . | . . . . . Repair Stations . | . . . . . Recycling Units . | . . . . . Scanalyzers . | . . . . . Garrison Access . | . . . . . Terminal Hacks 1 | . . . 1 . Proto ID Catalog 1 | . . . 1 . Fabricator Hacks . | . . . . . Repair Station Hacks . | . . . . . Recycling Unit Hacks . | . . . . . Scanalyzer . | . . . . . Garrison Access Hacks . | . . . . . Unauthorized Hacks . | . . . . . Terminals . | . . . . . Fabricators . | . . . . . Repair Stations . | . . . . . Recycling Units . | . . . . . Scanalyzers . | . . . . . Garrison Access . | . . . . . Data Cores Recovered . | . . . . . Used . | . . . . . Hacking Detections . | . . . . . Full Trace Events . | . . . . . Feedback Events . | . . . . . Feedback Blocked . | . . . . . Robot Schematics Acquired . | . . . . . Robots Built . | . . . . . Authchips . | . . . . . Time . | . . . . . Total Robot Build Rating . | . . . . . Part Schematics Acquired . | . . . . . Parts Built . | . . . . . Authchips . | . . . . . Time . | . . . . . Total Part Build Rating . | . . . . . Part Studies Acquired . | . . . . . Parts Repaired . | . . . . . Time . | . . . . . Parts Recycled . | . . . . . Recycled Matter . | . . . . . Retrieved Matter . | . . . . . Retrieved Components . | . . . . . Parts Scanalyzed . | . . . . . Part Schematics Acquired . | . . . . . Parts Damaged . | . . . . . Bothacking | -11 -10 -10 -10 -9 ------------ Run | Yrd Mat Min Exi Min Used RIF Installer . | . . . . . Robots Hacked . | . . . . . Non-combat . | . . . . . Combat . | . . . . . Robot Hacks Applied . | . . . . . Relay Couplers Released . | . . . . . Fabnet Peak Effective % . | . . . . . Robots Rewired . | . . . . . Allies Hacked . | . . . . . Hacks Repelled . | . . . . . Allies | -11 -10 -10 -10 -9 -------- Run | Yrd Mat Min Exi Min Total Allies 3 | . . 3 . . Largest Group 3 | . . 3 3 3 Highest-Rated Group 40 | . . 40 40 40 Highest-Rated Ally 16 | . . 16 16 16 Total Orders . | . . . . . Ally Attacks 14 | . . . . 14 Total Damage 97 | . . . . 97 Kills 2 | . . . . 2 Allies Corrupted . | . . . . . Allies Melted . | . . . . . Intel | -11 -10 -10 -10 -9 ------- Run | Yrd Mat Min Exi Min Active Infowar (turns) . | . . . . . Robot Analysis Total . | . . . . . Derelict Logs Recovered 2 | . . 1 . 1 Drone Launches . | . . . . . Drone Recoveries . | . . . . . Exploration | -11 -10 -10 -10 -9 ------------- Run | Yrd Mat Min Exi Min Turns Passed 2046 | . 38 680 350 978 Spaces Moved 1099 | 1 32 526 236 304 Core . | . . . . . Treads . | . . . . . Legs 1099 | 1 32 526 236 304 Wheels . | . . . . . Hover . | . . . . . Flight . | . . . . . Fastest Speed 120 | 120 120 120 120 120 Average Speed 136 | 120 120 120 140 163 Slowest Speed 190 | 120 120 120 190 190 Overloaded Moves . | . . . . . Propulsion Burnouts . | . . . . . Robots Hopped . | . . . . . Potential Cave-ins . | . . . . . Cave-ins Triggered . | . . . . . Exploration Rate (%) 38 | 2 13 88 62 27 Regions Visited 4 Branch Regions 3 Pre-discovered Areas 1 | . . . . 1 Known Exits Taken . | . . . . . Unknown Exits Taken 4 | 1 1 1 1 . Scrap Searched . | . . . . . Spaces Dug . | . . . . . Terrain Destroyed 31 | . . . . 31 Melee . | . . . . . Projectile . | . . . . . AOE 31 | . . . . 31 Terrain Rammed . | . . . . . Walls Destroyed . | . . . . . Machines Disabled . | . . . . . Actions | -11 -10 -10 -10 -9 --------- Run | Yrd Mat Min Exi Min Total 1616 | . 31 553 253 779 Wait 482 | . . 12 12 458 Move 1095 | . 31 525 235 304 Hop . | . . . . . Pick Up 8 | . . 2 2 4 Fast Attach 2 | . . . 1 1 Attach . | . . . . . Detach 1 | . . . 1 . Swap 5 | . . . 2 3 Drop 5 | . . 1 . 4 Fire 14 | . . 11 . 3 Melee . | . . . . . Ram . | . . . . . Kick 4 | . . 2 . 2 Crush . | . . . . . Escape Stasis . | . . . . . Rewire . | . . . . . Trap . | . . . . . Miscellaneous . | . . . . . Route ------- -11/Scrapyard -10/Materials -10/Mines (discovered 3 exits: [*Mat x2] / *Exi) -10/Exiles -9/Mines History --------- Turn | Location | Event 1 | -11/Scrapyard | Discovered new exit (range 0) 1 | -11/Scrapyard | Entered Materials 34 | -10/Materials | Discovered new exit (range 5) 39 | -10/Materials | Entered Mines 83 | -10/Mines | Received a Rocket Launcher from a helpful Derelict 160 | -10/Mines | Learned 2 Materials zone layouts 305 | -10/Mines | Build established: Mutant 389 | -10/Mines | Discovered new exit (range 8) 654 | -10/Mines | Assisted by bots powering up and referring to "LRC-V3" 674 | -10/Mines | Discovered new exit (range 7) 675 | -10/Mines | Met a Derelict testing a Signal Generator 684 | -10/Mines | Found Signal Generator 701 | -10/Mines | Deemed a non-threat by the Exiles lab entrance 702 | -10/Mines | Discovered new exit (range 5) 719 | -10/Mines | Entered Exiles 719 | -10/Exiles | Accompanied by 3 allies 748 | -10/Exiles | Met 8R-AWN 769 | -10/Exiles | Met EX-HEX 803 | -10/Exiles | Met EX-BIN 818 | -10/Exiles | Aligned with FarCom system 819 | -10/Exiles | Given EX-Vault access code 851 | -10/Exiles | Opened EX-Vault 861 | -10/Exiles | Found Latent Energy Streamer 900 | -10/Exiles | Warned to stay clear of 0b10 Research branches 925 | -10/Exiles | Exiles lab attacked by MAIN.C 1047 | -10/Exiles | Discovered new exit (range 10) 1069 | -10/Exiles | Left Exiles lab with Latent Energy Streamer 1069 | -10/Exiles | Entered Mines 1069 | -9/Mines | Accompanied by 3 allies 1115 | -9/Mines | Assembled infested the area 1294 | -9/Mines | Joined a pair of Derelicts in attacking an 0b10 outpost 1457 | -9/Mines | Learned location of Recycling (-7) 2047 | -9/Mines | Self-destructed Last Messages --------------- 01758_ NW5654UD%MSWMW5J/53SL 01778_ System corrupted: Matter fused (-6). 01846_ U-05 Engineer builds a Door. 01855_ U-05 Engineer lays Concrete. 01897_ System corrupted: Energy discharge (-75). 01953_ System corrupted: Energy discharge (-55). 02026_ U-05 Engineer builds a Wall. 02029_ K-01 Serf collects debris. 02030_ U-05 Engineer builds a Wall. 02035_ U-05 Engineer lays Concrete. 02038_ U-05 Engineer builds a Door. 02042_ Door malfunctions. 02042_ U-05 Engineer repairs door. 02043_ U-05 Engineer lays Concrete. 02045_ K-01 Serf destroyed. 02045_ Mercenary 1a destroyed. 02045_ J5-HVA destroyed. 02047_ K-01 Serf destroyed. 02047_ Trooper 1a destroyed. 02047_ Assault Rifle destroyed. Map ----- +----------------------------------------------------+ | ???# ### #????????????????????????????? | | ???## ##?# #????????????????????????????? | | ????## ####??# #????????????????????????????? | | ?????####?????# #????????????????????????????? | | ??????????????# #########????????????????????? | | ??????????????# #????????????????????? | | ??????????????######### #????????????????????? | | ??????????????????????# #####????????????????? | | ??????????????????????# #????????????????? | | ??????????????????????##### #????????????????? | | ??????????????????????#???# #????????????????? | | ?????????????????????? ???# #????????????????? | | ?????????????????????? ???# #????????????????? | | ?????????????????????# #??# #????????????????? | | ?????????????????????# #??# #????????????????? | | ?????????????????????# #??# #????????????????? | | ?????????????????????# #??# #????????????????? | | ??????????###????????# #??# #????????????????? | | ??????##### ##?####??#%#??# ########?????????? | | ??????# ";;;### #### #??#% #????? | | ??????# ;; ;; =[%%% ####*########?????????? | | ??????# ; =#[= %# #????????????????? | | ??????# ;! u/% =*# # #????????????????? | | ??????# ; ![*/ = #%#????????????????? | | ??????# "==!*# #????????????????? | | ??????# "" %"# @ ###????????????????? | | ??????## #"""# #######?????????????? | | ???????###### %* #?????????????? | | ?????????## g = #?????????????? | | ????????## [% #### #?????????????? | | ???????# dd *##??# #?????????????? | | ???????# #### #???# #?????????????? | | ???????# ##??## ###???# #?????????????? | | ??????## ##???####?????# #?????####????? | | ?????## =%[ #????????????# ####### #????? | | ????## #????????????# / #????? | | ????# ##????????????# + #????? | | ????# ##?????????????####### ##????? | | ????## ##???????????????????# #?????? | | ?????## #???????????????????# #?????? | | ??????# #???????????????????## ##?????? | | ??????## ##????????????????????####??????? | | ???????## ##???????????????????????????????? | | ????????#####????????????????????????????????? | | ?????????????????????????????????????????????? | | ?????????????????????????????????????????????? | | | | | | | | | +----------------------------------------------------+ Best States ------------- Heat Dissipation 25 Energy Generation 10 Energy Capacity 250 Matter Stores 300 Matter Capacity 300 Sight Range 16 Terrain Scan Density 10 Armor Coverage 150 Evasion (%) 55 Item Schematics ----------------- None Robot Schematics ------------------ None Fabricated ------------ Nothing Repaired ---------- Nothing Studied --------- None Alien Tech Used ----------------- None Achievements -------------- None Challenges ------------ None Game ------ Seed WeightShrapnelRecalibrator Manual? 1 Play Time 00:10:25 Cumulative 156.5 hours Start 2026.09.21 @ 19:09:51 End 2026.09.21 @ 21:35:40 Sessions 3 Manual Loads 0 Difficulty Rogue Special Mode None Game No. 99 Rogue 98 Adventurer 1 Explorer 0 Win Type - Total 11 Types 4/2/1/1/0/0/0/1/1/1 Lore% 62 Gallery% 70 Achievement% 70 Wizard Run 0 Options --------- Layout 1 ASCII 0 Keyboard 0 Movement Numpad Keybinds 0 Fullscreen 1 Font 32/SmallcapsGlow Map View 50x35 Zoom Use 0% Tactical HUD 1 Map Filters NONE Filters NONE Steam 1 RUN: 177f787b-c3c2-43cf-859f-581f9120370a